Cogmind - Beta 9.4 @@@ ROGUE MODE // 2020.03.10 @ 00:11:00 // AFD2019/Pay2Buy Player: K.Ioz Result: Destroyed by G-34 Mercenary with Small Laser Performance ------------- Evolutions (1) 500 Regions Visited (2) 400 Robots Destroyed (12) 60 Value Destroyed (300) 300 Prototype IDs (4) 80 Alien Tech Used (0) 0 Bonus (0) 0 TOTAL SCORE: 1340 Bonus ------- None Cogmind --------- Core Integrity 0/400 Matter 300/300 Energy 99/100 System Corruption 0% Temperature Cool (6) Movement Core (150) Ox2 Location -9/Materials Parts ------- > --- POWER (1) -------- (None) > --- PROPULSION (2) --- (None) > --- UTILITY (3) ------ Weapon Shielding > --- WEAPON (3) ------- Flail Flail Great Maul > --- INVENTORY (10) --- (None) Peak State ------------ > --- POWER ------------ Ion Engine > --- PROPULSION ------- Wheel Wheel > --- UTILITY ---------- Weapon Shielding Medium Armor Plating > --- WEAPON ----------- Flail Heavy Hammer > --- INVENTORY -------- (None) [Rating: 10] Favorites ----------- Power Ion Engine Engine Ion Engine Propulsion Wheel Wheel Wheel Utility Weapon Shielding Protection Weapon Shielding Weapon Flail Impact Weapon Flail Build | -11 -10 -9 ------- Run | Scr Mat Mat Slots Evolved 2 | . . 2 Power . | . . . Propulsion . | . . . Utility 1 | . . 1 Weapon 1 | . . 1 Parts Attached . | . . . Power . | . . . Engine . | . . . Core . | . . . Reactor . | . . . Propulsion . | . . . Treads . | . . . Leg . | . . . Wheel . | . . . Hover . | . . . Flight . | . . . Utility . | . . . Device . | . . . Storage . | . . . Processor . | . . . Hackware . | . . . Protection . | . . . Artifact . | . . . Weapon . | . . . Energy Gun . | . . . Energy Cannon . | . . . Ballistic Gun . | . . . Ballistic Cannon . | . . . Launcher . | . . . Special Weapon . | . . . Impact Weapon . | . . . Slashing Weapon . | . . . Piercing Weapon . | . . . Special Melee Weapon . | . . . Unidentified Prototypes . | . . . Parts Lost 7 | . 1 6 Power 1 | . . 1 Propulsion 4 | . . 4 Utility 1 | . 1 . Weapon 1 | . . 1 Highest Loss Streak 4 | . 1 4 Average Slot Usage (%) 81 | . 97 63 Engine 11 | . 14 8 Wheel 21 | . 28 13 Protection 18 | . 25 11 Impact Weapon 29 | . 28 30 Naked Turns . | . . . Heaviest Build 18 | 18 18 13 Greatest Support 20 | 20 20 20 Greatest Overweight (x) 4 | . . 4 Average Overweight (x) . | . . . Largest Inventory Capacity 10 | 10 10 10 Average Capacity 10 | 10 10 10 Most Carried . | . . . Average Carried . | . . . Final Capacity 10 | 10 10 10 Final Carried . | . . . Class Distribution -------------------- 100% | Mutant Dominant Class ---------------- Mutant | -10/Materials Mutant | -9/Materials Resources | -11 -10 -9 ----------- Run | Scr Mat Mat Matter Collected 185 | . 173 12 Remotely . | . . . Salvage Created 352 | . 173 179 Parts . | . . . Haulers Intercepted . | . . . Recyclers Shooed . | . . . Parts Field Recycled . | . . . Retrieved Matter . | . . . Parts Self-Destructed . | . . . Prevented . | . . . Kills | -11 -10 -9 ------- Run | Scr Mat Mat Combat Hostiles Destroyed 10 | . 4 6 Melee 7 | . 2 5 Classes Destroyed 4 | . 1 3 Operator 2 | . . 2 Swarmer 4 | . . 4 Grunt 5 | . 4 1 Sentry 1 | . . 1 Best Kill Streak 4 | . 2 4 Combat Bots Only 4 | . 2 4 Max Kills in Single Turn 1 | . 1 1 Gunslinging . | . . . Exploded . | . . . Melee 1 | . 1 1 Uniques/NPCs Destroyed . | . . . Combat | -11 -10 -9 -------- Run | Scr Mat Mat Damage Taken 1007 | . 267 740 Core 463 | . 55 408 Absorbed by Shields . | . . . Core Remaining (%) 89 | 100 78 . Volleys Fired . | . . . Largest . | . . . Hottest . | . . . Shots Fired . | . . . Gun . | . . . Cannon . | . . . Launcher . | . . . Special . | . . . Kinetic . | . . . Thermal . | . . . Explosive . | . . . Electromagnetic . | . . . Robot Hit Streak . | . . . Robot Miss Streak . | . . . Penetration Max . | . . . Secondary Targets . | . . . Shots Hit Robots 37 | . 11 26 Core Hits 7 | . 2 5 Critical Hits . | . . . Critical Kills . | . . . Critical Parts Destroyed . | . . . Melee Attacks 56 | . 18 38 Impact 56 | . 18 38 Slashing . | . . . Piercing . | . . . Sneak Attacks 3 | . 1 2 Combat Hostiles 1 | . 1 . Follow-up Attacks 13 | . 5 8 Damage Inflicted 1086 | . 343 743 Guns . | . . . Cannons . | . . . Explosions . | . . . Melee 1086 | . 343 743 Ramming . | . . . Kinetic . | . . . Thermal . | . . . Explosive . | . . . Electromagnetic . | . . . Impact 1086 | . 343 743 Slashing . | . . . Piercing . | . . . Highest Corruption . | . . . Average Corruption . | . . . Corruption Purged . | . . . Overload Shots . | . . . Overflow Damage 187 | . 47 140 Projectiles . | . . . Explosions . | . . . Melee 187 | . 47 140 Knockbacks 3 | . . 3 Impact 3 | . . 3 Kinetic . | . . . Secondary . | . . . Self-Inflicted Damage . | . . . Shots . | . . . Rammed . | . . . Targets Rammed . | . . . Kicked . | . . . Crushed . | . . . Highest Temperature . | . . . Average Temperature . | . . . Received Heat Transfer 381 | . 147 234 Siege Activations . | . . . Robots Corrupted . | . . . Combat Hostiles . | . . . Parts Fried . | . . . Impact Corruptions 13 | . 3 10 Robots Melted . | . . . Combat Hostiles . | . . . Parts Melted . | . . . Heat Transferred . | . . . Parts Sabotaged . | . . . Parts Stolen . | . . . Parts Stripped . | . . . Power Chain Reactions . | . . . Missiles Intercepted . | . . . Alert | -11 -10 -9 ------- Run | Scr Mat Mat Peak Influence 197 | . 129 197 Average Influence 93 | . 66 128 Maximum Alert Level . | . . . Low Security (%) 100 | 100 100 100 Level 1 . | . . . Level 2 . | . . . Level 3 . | . . . Level 4 . | . . . Level 5 . | . . . High Security . | . . . Max Security . | . . . Squads Dispatched 4 | . 2 2 Investigation . | . . . Extermination . | . . . Reinforcement 4 | . 2 2 Assault . | . . . Garrison . | . . . Intercept . | . . . Construction Impeded . | . . . Haulers Reinforced . | . . . Stealth | -11 -10 -9 --------- Run | Scr Mat Mat Distress Signals 1 | . 1 . Communications Jammed . | . . . Distress Signals . | . . . Times Spotted 19 | . 9 10 Peak Tracking Total 5 | . 3 5 Tactical Retreats 2 | . 1 1 Traps | -11 -10 -9 ------- Run | Scr Mat Mat Traps Triggered . | . . . Indirectly . | . . . Trap Hack Attempts . | . . . Triggered . | . . . Disarmed . | . . . Reprogrammed . | . . . Reused . | . . . Traps Extracted . | . . . Installed . | . . . Triggered . | . . . Machines | -11 -10 -9 ---------- Run | Scr Mat Mat Machines Disabled . | . . . Max in Single Turn . | . . . Machines Sabotaged . | . . . Garrisons Compromised . | . . . Overloaded Fab Kills . | . . . Fab Network Shutdowns . | . . . Hacking | -11 -10 -9 --------- Run | Scr Mat Mat Machines Accessed 3 | . 1 2 Terminals 3 | . 1 2 Fabricators . | . . . Repair Stations . | . . . Recycling Units . | . . . Scanalyzers . | . . . Garrison Access . | . . . Total Hacks 10 | . 4 6 Successful 5 | . 3 2 Failed 5 | . 1 4 Catastrophic 1 | . . 1 Database Lockouts . | . . . Manual 2 | . 2 . Terminals 10 | . 4 6 Fabricators . | . . . Repair Stations . | . . . Recycling Units . | . . . Scanalyzers . | . . . Garrison Access . | . . . Terminal Hacks 5 | . 3 2 Record 1 | . . 1 Prototype ID Bank 2 | . 1 1 Emergency Access Points 1 | . 1 . Locate Traps 1 | . 1 . Fabricator Hacks . | . . . Repair Station Hacks . | . . . Recycling Unit Hacks . | . . . Scanalyzer . | . . . Garrison Access Hacks . | . . . Unauthorized Hacks . | . . . Terminals . | . . . Fabricators . | . . . Repair Stations . | . . . Recycling Units . | . . . Scanalyzers . | . . . Garrison Access . | . . . Data Cores Recovered . | . . . Used . | . . . Hacking Detections 2 | . . 2 Full Trace Events . | . . . Feedback Events . | . . . Feedback Blocked . | . . . Robot Schematics Acquired . | . . . Robots Built . | . . . Matter . | . . . Time . | . . . Total Robot Build Rating . | . . . Part Schematics Acquired . | . . . Parts Built . | . . . Matter . | . . . Time . | . . . Total Part Build Rating . | . . . Parts Repaired . | . . . Time . | . . . Parts Recycled . | . . . Recycled Matter . | . . . Retrieved Matter . | . . . Retrieved Components . | . . . Parts Scanalyzed . | . . . Part Schematics Acquired . | . . . Parts Damaged . | . . . Bothacking | -11 -10 -9 ------------ Run | Scr Mat Mat Used RIF Installer . | . . . Robots Hacked . | . . . Non-combat . | . . . Combat . | . . . Robot Hacks Applied . | . . . Relay Couplers Released . | . . . Robots Rewired . | . . . Allies Hacked . | . . . Hacks Repelled . | . . . Allies | -11 -10 -9 -------- Run | Scr Mat Mat Total Allies . | . . . Largest Group . | . . . Highest-Rated Group . | . . . Highest-Rated Ally . | . . . Total Orders . | . . . Ally Attacks . | . . . Total Damage . | . . . Kills . | . . . Allies Corrupted . | . . . Allies Melted . | . . . Intel | -11 -10 -9 ------- Run | Scr Mat Mat Robot Analysis Total . | . . . Derelict Logs Recovered . | . . . Drone Launches . | . . . Drone Recoveries . | . . . Exploration | -11 -10 -9 ------------- Run | Scr Mat Mat Turns Passed 507 | 14 254 239 Spaces Moved 446 | 18 261 167 Core 30 | . . 30 Treads . | . . . Legs . | . . . Wheels 416 | 18 261 137 Hover . | . . . Flight . | . . . Fastest Speed 80 | 80 80 80 Average Speed 85 | 80 80 94 Slowest Speed 250 | 80 80 250 Overloaded Moves . | . . . Propulsion Burnouts . | . . . Robots Hopped . | . . . Cave-ins Triggered . | . . . Exploration Rate (%) 19 | 3 40 14 Regions Visited 2 Branch Regions . Pre-discovered Areas . | . . . Known Exits Taken . | . . . Unknown Exits Taken 2 | 1 1 . Scrap Searched . | . . . Spaces Dug . | . . . Terrain Destroyed . | . . . Melee . | . . . Projectile . | . . . AOE . | . . . Actions | -11 -10 -9 --------- Run | Scr Mat Mat Total 494 | 17 280 197 Wait 12 | . 8 4 Move 444 | 17 260 167 Hop . | . . . Pick Up . | . . . Fast Attach . | . . . Attach . | . . . Detach . | . . . Swap . | . . . Drop . | . . . Fire . | . . . Melee 38 | . 12 26 Ram . | . . . Kick . | . . . Crush . | . . . Escape Stasis . | . . . Rewire . | . . . Trap . | . . . Miscellaneous . | . . . Route ------- -11/Scrapyard -10/Materials -9/Materials History --------- Turn | Location | Event 4 | -11/Scrapyard | Discovered new exit (range 15) 15 | -11/Scrapyard | Entered Materials 235 | -10/Materials | Discovered new exit (range 16) 269 | -10/Materials | Entered another Materials area 269 | -9/Materials | Evolved 2 slots: Utility x1, Weapon x1 305 | -9/Materials | Build established: Mutant 457 | -9/Materials | Core integrity fell below 50% 481 | -9/Materials | Lost 4 parts (1p2n1w) 491 | -9/Materials | Core integrity fell below 20% 508 | -9/Materials | Destroyed by G-34 Mercenary with Small Laser Last Messages --------------- 00401_ O-16 Technician system corrupted by crushing effect. 00401_ O-16 Technician knocked back. 00402_ O-16 Technician system terminally corrupted. 00417_ Flail follow-up attack on Y-45 Defender. 00429_ Hvy. Hammer destroyed. 00441_ Ion Engine destroyed. 00444_ Wheel destroyed. 00447_ Atomic Centrifuge disabled. 00450_ Wheel destroyed. 00459_ Destroyed Heat Sink. 00459_ Y-45 Defender system corrupted by crushing effect. 00460_ Y-45 Defender system terminally corrupted. [Purchased: Great Maul] 00468_ Flail follow-up attack on G-34 Mercenary. 00468_ Destroyed Heat Sink. 00468_ G-34 Mercenary system corrupted by crushing effect. 00484_ G-34 Mercenary IFF system glitched. 00491_ G-34 Mercenary knocked back. 00506_ Flail follow-up attack on G-34 Mercenary. 00506_ G-34 Mercenary destroyed. Map ----- +----------------------------------------------------+ | ?????????????????????????????????????? | | ?????????????????????????????????????? | | ?????????????????????????????????????? | | ?????????????????????????????????????? | | ?????????????????????????????????????? | | ?????????????????????????????????????? | | ?????????????????????????????????????? | | ?????????????????????????????????????? | | ?????????????????????????????????????? | | ?????????????????????????????????????? | | ?????????????????????????????????????? | | ?????????????????????????????????????? | | ?????????????????????????????????????? | | ?????????????????????????????????????? | | ?????????????????????????????????????? | | ?????????????????????????????????????? | | ?????????????????????????????????????? | | ???????###############???????????????? | | ??????# # ##+######+####### | | ??????# # ?? | | ??????# """"" # ????? | | ??????# """"" # ######## | | ??????# """"" # """ # %# | | ??????# # """ # # | | ??????# # " """ # + | | ??????# g @ # T # """# | | ??????######+#### " # R"## | | ?????????# % % # """## | | ?????????# %+% ## | | ??????######/############ %######### | | ??????# ########+######????# | | ??????# # #????# | | ?????## """ # #????# | | ?????# """ # """ #????# | | ?????##% "" # """ #????# | | ??????# "T" # """ #????# | | ??????# """ # """T""" #????# | | ??????###########################????# | | | | | | | | | | | | | | | | | | | | | | | | | +----------------------------------------------------+ Best States ------------- Heat Dissipation 28 Energy Generation 10 Energy Capacity 250 Matter Stores 300 Matter Capacity 300 Sight Range 16 Terrain Scan Density 10 Armor Coverage 225 Weapon Shielding 33 Evasion (%) 44 Item Schematics ----------------- None Robot Schematics ------------------ None Fabricated ------------ Nothing Alien Tech Used ----------------- None Achievements -------------- None Challenges ------------ None Cogshop Purchases (11) ------------------------ Wheel (659) Wheel (659) Weapon Shielding (599) Flail (629) Hvy. Hammer (629) Ion Engine (599) Med. Armor Plating (699) Flail (656) Wheel (703) Wheel (703) Great Maul (771) Game ------ Seed CloakRestorationDriver Manual? 0 Play Time 00:11:29 Cumulative 135.5 hours Start 2020.03.10 @ 00:02:22 End 2020.03.10 @ 00:11:00 Sessions 1 Manual Loads 0 Difficulty Rogue Special Mode AFD2019/Pay2Buy Game No. 90 Rogue 72 Adventurer 0 Explorer 18 Win Type - Total 2 Types 2/0/0/0/0/0/0 Lore% 58 Gallery% 58 Achievement% 52 Wizard Run 0 Options --------- ASCII 0 Keyboard 1 Movement Vi Keybinds 0 Fullscreen 0 Font 16/SmallcapsGlow Map View 76x50 Tactical HUD 1 Map Filters NONE Filters LOW_CONTRAST(47,30,31)|SHIFT_HUE(250) Steam 1 RUN: 54aeb644-ef46-4c6c-9f14-3ecd3f099b17